fUST/lending_fUST_20250917
["ID","MTS","AMOUNT","RATE_DAILY","PERIOD"]
[385840295,1758059450231,-328.03690357,0.00022191,3]
[385840297,1758059450241,-475.53190788,0.00022191,3]
[385840301,1758059450272,-4.46809212,0.00022191,3]
[385840303,1758059450282,-480.0,0.00022191,3]
[385840305,1758059450290,-480.0,0.00022191,3]
[385840307,1758059450300,-480.0,0.00022191,3]
[385840309,1758059450310,-480.0,0.00022191,3]
[385840311,1758059450319,-480.0,0.00022191,3]
[385840313,1758059450328,-497.78,0.00022191,3]
[385840315,1758059450337,-480.0,0.00022191,3]
[385840317,1758059450346,-166.3,0.00022191,3]
[385840319,1758059450355,-480.0,0.00022191,3]
[385840321,1758059450364,-480.0,0.00022191,3]
[385840323,1758059450374,-480.0,0.00022191,3]
[385840325,1758059450387,-480.0,0.00022191,3]
[385840327,1758059450397,-480.0,0.00022191,3]
[385840329,1758059450406,-480.0,0.00022191,3]
[385840332,1758059450416,-1150.51,0.00022191,3]
[385840333,1758059450425,-480.0,0.00022191,3]
[385840335,1758059450434,-480.0,0.00022191,3]
[385840337,1758059450443,-480.0,0.00022191,3]
[385840339,1758059450452,-570.46,0.00022191,3]
[385840341,1758059450463,-480.0,0.00022191,3]
[385840343,1758059450473,-633.83,0.00022191,3]
[385840345,1758059450481,-480.0,0.00022191,3]
[385840347,1758059450491,-480.0,0.00022191,3]
[385840349,1758059450500,-480.0,0.00022191,3]
[385840351,1758059450509,-640.96,0.00022191,3]
[385840353,1758059450518,-480.0,0.00022191,3]
[385840355,1758059450527,-480.0,0.00022191,3]
[385840357,1758059450536,-424.53,0.00022191,3]
[385840359,1758059450546,-480.0,0.00022191,3]
[385840361,1758059450555,-480.0,0.00022191,3]
[385840363,1758059450565,-480.0,0.00022191,3]
[385840365,1758059450574,-850.88,0.00022191,3]
[385840367,1758059450583,-480.0,0.00022191,3]
[385840369,1758059450592,-480.0,0.00022191,3]
[385840371,1758059450601,-480.0,0.00022191,3]
[385840373,1758059450610,-1524.97,0.00022191,3]
[385840375,1758059450619,-480.0,0.00022191,3]
[385840377,1758059450629,-480.0,0.00022191,3]
[385840379,1758059450638,-480.0,0.00022191,3]
[385840381,1758059450647,-480.0,0.00022191,3]
[385840383,1758059450656,-480.0,0.00022191,3]
[385840385,1758059450666,-480.0,0.00022191,3]
[385840387,1758059450674,-480.0,0.00022191,3]
[385840389,1758059450684,-480.0,0.00022191,3]
[385840391,1758059450693,-480.0,0.00022191,3]
[385840393,1758059450702,-480.0,0.00022191,3]
[385840395,1758059450711,-796.65,0.00022191,3]
[385840397,1758059450720,-480.0,0.00022191,3]
[385840399,1758059450730,-480.0,0.00022191,3]
[385840401,1758059450738,-480.0,0.00022191,3]
[385840403,1758059450747,-480.0,0.00022191,3]
[385840405,1758059450757,-480.0,0.00022191,3]
[385840407,1758059450766,-480.0,0.00022191,3]
[385840409,1758059450776,-301.8,0.00022191,3]
[385840411,1758059450786,-480.0,0.00022191,3]
[385840413,1758059450795,-480.0,0.00022191,3]
[385840415,1758059450804,-480.0,0.00022191,3]
[385840417,1758059450814,-480.0,0.00022191,3]
[385840419,1758059450823,-3412.08,0.00022191,3]
[385840421,1758059450832,-480.0,0.00022191,3]
[385840423,1758059450841,-480.0,0.00022191,3]
[385840425,1758059450849,-917.58,0.00022191,3]
[385840427,1758059450858,-480.0,0.00022191,3]
[385840429,1758059450867,-1794.85,0.00022191,3]
[385840431,1758059450876,-1375.14,0.00022191,3]
[385840433,1758059450885,-480.0,0.00022191,3]
[385840435,1758059450894,-918.45,0.00022191,3]
[385840437,1758059450906,-480.0,0.00022191,3]
[385840439,1758059450920,-481.65,0.00022191,3]
[385840441,1758059450929,-480.0,0.00022191,3]
[385840443,1758059450939,-480.0,0.00022191,3]
[385840445,1758059450948,-824.49,0.00022191,3]
[385840447,1758059450957,-984.37,0.00022191,3]
[385840449,1758059450966,-515.51,0.00022191,3]
[385840451,1758059450976,-1467.81,0.00022191,3]
[385840453,1758059450985,-2295.91,0.00022191,3]
[385840454,1758059450997,-480.0,0.00022191,3]
[385840456,1758059451012,-660.1,0.00022191,3]
[385840459,1758059451021,-480.0,0.00022191,3]
[385840460,1758059451030,-480.0,0.00022191,3]
[385840462,1758059451039,-480.0,0.00022191,3]
[385840465,1758059451049,-565.07,0.00022191,3]
[385840467,1758059451058,-480.0,0.00022191,3]
[385840468,1758059451067,-2589.7,0.00022191,3]
[385840469,1758059451076,-358.01583032,0.00022191,3]
[385840470,1758059451085,-480.0,0.00022191,3]
[385840471,1758059451095,-987.36,0.00022191,3]
[385840472,1758059451104,-624.5,0.00022191,3]
[385840473,1758059451113,-480.0,0.00022191,3]
[385840474,1758059451122,-480.0,0.00022191,3]
[385840475,1758059451131,-4051.72,0.00022191,3]
[385840477,1758059451141,-480.0,0.00022191,3]
[385840480,1758059451150,-480.0,0.00022191,3]
[385840481,1758059451159,-480.0,0.00022191,3]
[385840484,1758059451169,-619.46,0.00022191,3]
[385840485,1758059451178,-2014.55,0.00022191,3]
[385840487,1758059451188,-522.51,0.00022191,3]
[385840489,1758059451197,-664.53,0.00022191,3]
[385840492,1758059451206,-9825.24,0.00022191,3]
[385840494,1758059451217,-480.0,0.00022191,3]
[385840496,1758059451226,-982.7,0.00022191,3]
[385840498,1758059451235,-480.0,0.00022191,3]
[385840500,1758059451244,-799.6,0.00022191,3]
[385840502,1758059451253,-480.0,0.00022191,3]
[385840504,1758059451262,-480.0,0.00022191,3]
[385840506,1758059451271,-775.89,0.00022191,3]
[385840508,1758059451280,-749.57,0.00022191,3]
[385840510,1758059451290,-480.0,0.00022191,3]
[385840512,1758059451299,-595.0,0.00022191,3]
[385840513,1758059451309,-480.0,0.00022191,3]
[385840515,1758059451318,-480.0,0.00022191,3]
[385840517,1758059451327,-430.14399858,0.00022191,3]
[385840519,1758059451336,-2042.25,0.00022191,3]
[385840521,1758059451344,-480.0,0.00022191,3]
[385840523,1758059451353,-480.0,0.00022191,3]
[385840525,1758059451362,-700.58,0.00022191,3]
[385840527,1758059451371,-535.17,0.00022191,3]
[385840529,1758059451381,-1169.44,0.00022191,3]
[385840531,1758059451393,-952.92,0.00022191,3]
[385840533,1758059451402,-480.0,0.00022191,3]
[385840535,1758059451412,-840.24,0.00022191,3]
[385840537,1758059451421,-480.0,0.00022191,3]
[385840539,1758059451430,-1242.2,0.00022191,3]
[385840541,1758059451439,-17091.41,0.00022191,3]
[385840543,1758059451449,-675.04,0.00022191,3]
[385840545,1758059451458,-1997.16,0.00022191,3]
[385840547,1758059451468,-2066.82,0.00022191,3]
[385840549,1758059451478,-480.0,0.00022191,3]
[385840552,1758059451487,-480.0,0.00022191,3]
[385840553,1758059451496,-1557.09,0.00022191,3]
[385840556,1758059451506,-480.0,0.00022191,3]
[385840558,1758059451515,-3694.77,0.00022191,3]
[385840560,1758059451524,-239.37,0.00022191,3]
[385840561,1758059451533,-764.31,0.00022191,3]
[385840563,1758059451542,-4707.69,0.00022191,3]
[385840566,1758059451554,-1372.9,0.00022191,2]
[385840568,1758059451563,-2020.43,0.00022191,3]
[385840569,1758059451572,-480.0,0.00022191,3]
[385840571,1758059451582,-480.0,0.00022191,3]
[385840574,1758059451591,-480.0,0.00022191,3]
[385840576,1758059451600,-916.22,0.00022191,3]
[385840577,1758059451609,-185.30995254,0.00022191,3]
[385852715,1758059584273,789.91003919,0.000199,2]
[385852716,1758059584358,789.910039,0.00021149,2]
[385852720,1758059762658,876.61922884,0.000199,2]
[385852721,1758059762759,876.6192287,0.00021149,2]
[385852731,1758059965901,843.88402559,0.000199,2]
[385852732,1758059965985,843.88402556,0.00021149,2]
[385852740,1758060153382,787.6250906,0.000199,2]
[385852741,1758060153548,426.86376575,0.00021149,2]
[385852742,1758060153574,360.76132477,0.00021149,2]
[385852743,1758060340996,735.11675121,0.000199,2]
[385852744,1758060341091,735.11675115,0.00021149,2]
[385852746,1758060521412,686.10896774,0.000199,2]
[385852747,1758060521496,686.10896774,0.00021149,2]
[385852782,1758060632282,-1200.0,0.00021897,2]
[385852784,1758060632292,-300.0,0.00021897,2]
[385852786,1758060632301,-300.0,0.00021897,2]
[385852788,1758060632310,-300.0,0.00021897,2]
[385852790,1758060632319,-1200.0,0.00021898,2]
[385852792,1758060632329,-217.86301978,0.00021899,2]
[385852794,1758060632338,-160.0,0.00021899,2]
[385852796,1758060632347,-160.0,0.00021899,2]
[385852798,1758060632356,-160.0,0.00021899,2]
[385852800,1758060632365,-233.29513139,0.00021899,2]
[385852802,1758060632375,-300.0,0.00021912,2]
[385852804,1758060632383,-160.0,0.00021913,2]
[385852806,1758060632392,-847.61663983,0.00021913,2]
[385852808,1758060632402,-500.0,0.00021916,2]
[385852810,1758060632411,-295.23928199,0.00021916,2]
[385852812,1758060632421,-637.29505754,0.00021916,2]
[385852814,1758060632430,-625.87086141,0.00021916,2]
[385852816,1758060632439,-500.0,0.00021916,2]
[385852818,1758060632449,-339.33834207,0.00021916,2]
[385852820,1758060632458,-500.0,0.00021916,2]
[385852822,1758060632467,-500.0,0.00021916,2]
[385852824,1758060632476,-500.0,0.00021916,2]
[385852826,1758060632485,-500.0,0.00021916,2]
[385852828,1758060632494,-500.0,0.00021916,2]
[385852830,1758060632503,-500.0,0.00021916,2]
[385852832,1758060632512,-500.0,0.00021916,2]
[385852834,1758060632520,-500.0,0.00021916,2]
[385852836,1758060632530,-500.0,0.00021916,2]
[385852838,1758060632539,-500.0,0.00021916,2]
[385852840,1758060632548,-500.0,0.00021916,2]
[385852842,1758060632557,-536.74134042,0.00021916,2]
[385852844,1758060632566,-500.0,0.00021916,2]
[385852846,1758060632574,-22.18842305,0.00021917,2]
[385852848,1758060632585,-314.5842607,0.00021917,2]
[385852851,1758060632605,-217.69731625,0.00021917,2]
[385852853,1758060632614,-480.0,0.00021917,2]
[385852855,1758060632623,-480.0,0.00021917,2]
[385852857,1758060632632,-480.0,0.00021917,2]
[385852859,1758060632641,-178.0804977,0.00021917,2]
[385852861,1758060632652,-301.9195023,0.00021917,2]
[385852863,1758060632662,-480.0,0.00021917,2]
[385852865,1758060632671,-480.0,0.00021917,2]
[385852867,1758060632680,-480.0,0.00021917,2]
[385852869,1758060632689,-56.04233791,0.00021917,2]
[385852872,1758060632705,-423.95766209,0.00021917,2]
[385852874,1758060632714,-455.57201186,0.00021917,2]
[385852876,1758060632723,-480.0,0.00021917,2]
[385852878,1758060632733,-480.0,0.00021917,2]
[385852880,1758060632742,-480.0,0.00021917,2]
[385852882,1758060632751,-480.0,0.00021917,2]
[385852884,1758060632760,-480.0,0.00021917,2]
[385852886,1758060632769,-480.0,0.00021917,2]
[385852888,1758060632778,-480.0,0.00021917,2]
[385852890,1758060632787,-408.45154346,0.00021917,2]
[385852892,1758060632797,-480.0,0.00021917,2]
[385852894,1758060632805,-480.0,0.00021917,2]
[385852896,1758060632815,-524.37,0.00021917,2]
[385852898,1758060632824,-480.0,0.00021917,2]
[385852900,1758060632833,-1509.53,0.00021917,2]
[385852902,1758060632843,-729.37,0.00021917,2]
[385852904,1758060632852,-480.0,0.00021917,2]
[385852906,1758060632861,-480.0,0.00021917,2]
[385852908,1758060632870,-857.54,0.00021917,2]
[385852910,1758060632879,-480.0,0.00021917,2]
[385852912,1758060632888,-543.12,0.00021917,2]
[385852914,1758060632897,-228.8854151,0.00021917,2]
[385852916,1758060632906,-480.0,0.00021917,2]
[385852918,1758060632916,-480.0,0.00021917,2]
[385852920,1758060632925,-480.0,0.00021917,2]
[385852922,1758060632934,-480.0,0.00021917,2]
[385852924,1758060632943,-480.0,0.00021917,2]
[385852926,1758060632952,-480.0,0.00021917,2]
[385852927,1758060632961,-480.0,0.00021917,2]
[385852929,1758060632970,-480.0,0.00021917,2]
[385852931,1758060632979,-480.0,0.00021917,2]
[385852933,1758060632988,-480.0,0.00021917,2]
[385852935,1758060632997,-480.0,0.00021917,2]
[385852937,1758060633006,-480.0,0.00021917,2]
[385852939,1758060633015,-480.0,0.00021917,2]
[385852941,1758060633025,-480.0,0.00021917,2]
[385852943,1758060633034,-480.0,0.00021917,2]
[385852945,1758060633044,-480.0,0.00021917,2]
[385852947,1758060633054,-480.0,0.00021917,2]
[385852949,1758060633064,-480.0,0.00021917,2]
[385852951,1758060633073,-480.0,0.00021917,2]
[385852953,1758060633082,-480.0,0.00021917,2]
[385852955,1758060633092,-480.0,0.00021917,2]
[385852957,1758060633101,-480.0,0.00021917,2]
[385852959,1758060633111,-480.0,0.00021917,2]
[385852961,1758060633120,-480.0,0.00021917,2]
[385852963,1758060633130,-480.0,0.00021917,2]
[385852965,1758060633139,-480.0,0.00021917,2]
[385852968,1758060633152,-261.06011796,0.00021917,2]
[385852970,1758060633161,-480.0,0.00021917,2]
[385852972,1758060633170,-480.0,0.00021917,2]
[385852974,1758060633180,-480.0,0.00021917,2]
[385852976,1758060633189,-619.03,0.00021917,2]
[385852977,1758060633198,-480.0,0.00021917,2]
[385852979,1758060633207,-480.0,0.00021917,2]
[385852981,1758060633216,-480.0,0.00021917,2]
[385852984,1758060633226,-480.0,0.00021917,2]
[385852985,1758060633236,-622.61,0.00021917,2]
[385852987,1758060633245,-480.0,0.00021917,2]
[385852989,1758060633254,-480.0,0.00021917,2]
[385852991,1758060633263,-480.0,0.00021917,2]
[385852993,1758060633273,-480.0,0.00021917,2]
[385852995,1758060633283,-480.0,0.00021917,2]
[385852997,1758060633292,-757.25,0.00021917,2]
[385852999,1758060633301,-519.43,0.00021917,2]
[385853001,1758060633310,-480.0,0.00021917,2]
[385853003,1758060633319,-480.0,0.00021917,2]
[385853006,1758060633328,-480.0,0.00021917,2]
[385853007,1758060633338,-961.02,0.00021917,2]
[385853009,1758060633348,-480.0,0.00021917,2]
[385853012,1758060633357,-480.0,0.00021917,2]
[385853013,1758060633367,-480.0,0.00021917,2]
[385853016,1758060633376,-480.0,0.00021917,2]
[385853017,1758060633386,-480.0,0.00021917,2]
[385853019,1758060633395,-480.0,0.00021917,2]
[385853021,1758060633406,-480.0,0.00021917,2]
[385853023,1758060633416,-516.05,0.00021917,2]
[385853026,1758060633425,-480.0,0.00021917,2]
[385853028,1758060633435,-480.0,0.00021917,2]
[385853030,1758060633444,-480.0,0.00021917,2]
[385853031,1758060633453,-480.0,0.00021917,2]
[385853033,1758060633463,-480.0,0.00021917,2]
[385853035,1758060633473,-480.0,0.00021917,2]
[385853038,1758060633482,-780.69,0.00021917,2]
[385853040,1758060633492,-480.0,0.00021917,2]
[385853042,1758060633501,-480.0,0.00021917,2]
[385853044,1758060633510,-480.0,0.00021917,2]
[385853046,1758060633520,-480.0,0.00021917,2]
[385853048,1758060633530,-480.0,0.00021917,2]
[385853049,1758060633539,-480.0,0.00021917,2]
[385853052,1758060633548,-480.0,0.00021917,2]
[385853053,1758060633558,-805.97,0.00021917,2]
[385853054,1758060633567,-480.0,0.00021917,2]
[385853055,1758060633577,-480.0,0.00021917,2]
[385853056,1758060633586,-480.0,0.00021917,2]
[385853057,1758060633597,-480.0,0.00021917,2]
[385853058,1758060633606,-480.0,0.00021917,2]
[385853059,1758060633616,-480.0,0.00021917,2]
[385853060,1758060633626,-480.0,0.00021917,2]
[385853061,1758060633636,-480.0,0.00021917,2]
[385853062,1758060633646,-480.0,0.00021917,2]
[385853063,1758060633655,-915.04,0.00021917,2]
[385853064,1758060633665,-480.0,0.00021917,2]
[385853065,1758060633674,-650.27,0.00021917,2]
[385853066,1758060633683,-12.47790996,0.00021917,2]
[385853482,1758060638184,-480.0,0.00021917,2]
[385853484,1758060638194,-20.0,0.00021917,2]
[385853490,1758060638241,-460.0,0.00021917,2]
[385853492,1758060638251,-480.0,0.00021917,2]
[385853494,1758060638260,-2281.13,0.00021917,2]
[385853496,1758060638269,-480.0,0.00021917,2]
[385853498,1758060638279,-728.35,0.00021917,2]
[385853500,1758060638287,-737.42,0.00021917,2]
[385853502,1758060638297,-269.54339099,0.00021917,2]
[385853504,1758060638306,-480.0,0.00021917,2]
[385853506,1758060638315,-1114.53,0.00021917,2]
[385853508,1758060638324,-2562.31,0.00021917,2]
[385853510,1758060638333,-480.0,0.00021917,2]
[385853512,1758060638343,-568.38,0.00021917,2]
[385853514,1758060638353,-480.0,0.00021917,2]
[385853516,1758060638362,-430.5101643,0.00021917,2]
[385853529,1758060638471,-230.1998357,0.00021917,2]
[385853531,1758060638481,-480.0,0.00021917,2]
[385853533,1758060638490,-480.0,0.00021917,2]
[385853535,1758060638499,-24.47993191,0.00021917,2]
[385853548,1758060638612,-455.52006809,0.00021917,2]
[385853550,1758060638621,-480.0,0.00021917,2]
[385853552,1758060638630,-613.61,0.00021917,2]
[385853554,1758060638640,-480.0,0.00021917,2]
[385853556,1758060638649,-895.76,0.00021917,2]
[385853558,1758060638658,-480.0,0.00021917,2]
[385853560,1758060638668,-480.0,0.00021917,2]
[385853562,1758060638677,-480.0,0.00021917,2]
[385853564,1758060638687,-480.0,0.00021917,2]
[385853566,1758060638697,-480.0,0.00021917,2]
[385853568,1758060638706,-724.42,0.00021917,2]
[385853570,1758060638715,-1944.15,0.00021917,2]
[385853572,1758060638724,-480.0,0.00021917,2]
[385853574,1758060638734,-968.49,0.00021917,2]
[385853576,1758060638743,-480.0,0.00021917,2]
[385853578,1758060638753,-480.0,0.00021917,2]
[385853580,1758060638762,-480.0,0.00021917,2]
[385853582,1758060638771,-509.99,0.00021917,2]
[385853584,1758060638780,-480.0,0.00021917,2]
[385853586,1758060638789,-1891.23,0.00021917,2]
[385853588,1758060638799,-480.0,0.00021917,2]
[385853590,1758060638808,-480.11,0.00021917,2]
[385853592,1758060638817,-480.0,0.00021917,2]
[385853593,1758060638826,-972.84,0.00021917,2]
[385853595,1758060638835,-17161.3,0.00021917,2]
[385853598,1758060638845,-480.0,0.00021917,2]
[385853599,1758060638854,-480.0,0.00021917,2]
[385853601,1758060638863,-1215.08,0.00021917,2]
[385853603,1758060638873,-1032.53,0.00021917,2]
[385853605,1758060638882,-4677.01,0.00021917,2]
[385853607,1758060638891,-480.0,0.00021917,2]
[385853609,1758060638900,-480.0,0.00021917,2]
[385853611,1758060638909,-480.0,0.00021917,2]
[385853613,1758060638919,-132.26581565,0.00021917,2]
[385853616,1758060638933,-347.73418435,0.00021917,2]
[385853618,1758060638942,-480.0,0.00021917,2]
[385853620,1758060638952,-547.03,0.00021917,2]
[385853622,1758060638961,-660.3,0.00021917,2]
[385853624,1758060638970,-1540.71,0.00021917,2]
[385853626,1758060638979,-480.0,0.00021917,2]
[385853628,1758060638988,-480.0,0.00021917,2]
[385853629,1758060638997,-480.0,0.00021917,2]
[385853632,1758060639007,-480.0,0.00021917,2]
[385853634,1758060639016,-1570.48,0.00021917,2]
[385853635,1758060639025,-500.0,0.00021917,2]
[385853638,1758060639035,-500.0,0.00021917,2]
[385853639,1758060639043,-153.16014479,0.00021917,2]
[385853641,1758060639052,-497.04,0.00021917,2]
[385853643,1758060639062,-480.0,0.00021917,2]
[385853646,1758060639071,-587.82,0.00021917,2]
[385853648,1758060639080,-480.0,0.00021917,2]
[385853649,1758060639089,-480.0,0.00021917,2]
[385853652,1758060639098,-480.0,0.00021917,2]
[385853653,1758060639107,-857.28,0.00021917,2]
[385853655,1758060639116,-956.85,0.00021917,2]
[385853657,1758060639126,-3613.52,0.00021917,2]
[385853659,1758060639135,-480.0,0.00021917,2]
[385853661,1758060639144,-1778.73198936,0.00021917,2]
[385853663,1758060639160,-252.01801064,0.00021917,2]
[385853665,1758060639169,-480.0,0.00021917,2]
[385853667,1758060639178,-17.84582926,0.00021917,2]
[385853670,1758060639189,-462.15417074,0.00021917,2]
[385853672,1758060639200,-1571.36800862,0.00021917,2]
[385853872,1758060640396,-2506.24199138,0.00021917,2]
[385853875,1758060640406,-480.0,0.00021917,2]
[385853878,1758060640415,-910.44,0.00021917,2]
[385853882,1758060640424,-2070.59,0.00021917,2]
[385853885,1758060640433,-480.0,0.00021917,2]
[385853887,1758060640442,-488.13,0.00021917,2]
[385853890,1758060640451,-1127.99,0.00021917,2]
[385853892,1758060640460,-826.72,0.00021917,2]
[385853895,1758060640469,-692.52,0.00021917,2]
[385853898,1758060640477,-2021.93,0.00021917,2]
[385853901,1758060640486,-480.0,0.00021917,2]
[385853904,1758060640495,-480.0,0.00021917,2]
[385853907,1758060640505,-480.0,0.00021917,2]
[385853910,1758060640514,-480.0,0.00021917,2]
[385853914,1758060640523,-480.0,0.00021917,2]
[385853917,1758060640533,-1466.57,0.00021917,2]
[385853920,1758060640542,-480.0,0.00021917,2]
[385853922,1758060640551,-480.0,0.00021917,2]
[385853926,1758060640560,-480.0,0.00021917,2]
[385853928,1758060640568,-480.0,0.00021917,2]
[385853931,1758060640577,-791.71,0.00021917,2]
[385853934,1758060640586,-819.6,0.00021917,2]
[385853936,1758060640595,-1258.49,0.00021917,2]
[385853939,1758060640605,-480.0,0.00021917,2]
[385853943,1758060640614,-480.0,0.00021917,2]
[385853945,1758060640623,-480.0,0.00021917,2]
[385853949,1758060640632,-480.0,0.00021917,2]
[385853952,1758060640641,-2069.11,0.00021917,2]
[385853955,1758060640650,-480.0,0.00021917,2]
[385853958,1758060640659,-480.0,0.00021917,2]
[385853961,1758060640668,-480.0,0.00021917,2]
[385853964,1758060640677,-480.0,0.00021917,2]
[385853967,1758060640686,-3384.28,0.00021917,2]
[385853970,1758060640695,-1792.09,0.00021917,2]
[385853973,1758060640704,-480.0,0.00021917,2]
[385853976,1758060640714,-1446.63,0.00021917,2]
[385853979,1758060640723,-531.37,0.00021917,2]
[385853981,1758060640732,-876.92,0.00021917,2]
[385853983,1758060640742,-480.0,0.00021917,2]
[385853985,1758060640750,-182.94,0.00022,2]
[385853987,1758060640761,-163.012,0.00022091,2]
[385853989,1758060640775,-203.79186559,0.00022091,2]
[385853991,1758060640784,-1983.41249467,0.00022091,2]
[385853993,1758060640793,-500.0,0.0002219,2]
[385853996,1758060640802,-166.74506687,0.0002219,2]
[385853999,1758060640811,-500.0,0.0002219,2]
[385854002,1758060640820,-500.0,0.0002219,2]
[385854005,1758060640829,-500.0,0.0002219,2]
[385854008,1758060640839,-500.0,0.0002219,2]
[385854011,1758060640849,-500.0,0.0002219,2]
[385854014,1758060640858,-500.0,0.0002219,2]
[385854017,1758060640868,-500.0,0.0002219,2]
[385854020,1758060640877,-500.0,0.0002219,2]
[385854023,1758060640886,-500.0,0.0002219,2]
[385854026,1758060640895,-300.0,0.0002219,2]
[385854029,1758060640904,-480.0,0.0002219,3]
[385854032,1758060640913,-480.0,0.0002219,3]
[385854034,1758060640922,-480.0,0.0002219,3]
[385854037,1758060640931,-767.07758149,0.0002219,3]
[385854062,1758060640944,-646.55,0.0002219,3]
[385854067,1758060641061,-8277.08241851,0.0002219,3]
[385854070,1758060641071,-2079.7005573,0.00022191,2]
[385854073,1758060641081,-480.0,0.00022191,3]
[385854076,1758060641090,-584.16520968,0.00022191,3]
[385854079,1758060641099,-480.0,0.00022191,3]
[385854082,1758060641108,-480.0,0.00022191,3]
[385854085,1758060641118,-433.54604035,0.00022191,3]
[385854088,1758060641127,-480.0,0.00022191,3]
[385854091,1758060641137,-328.0,0.00022191,3]
[385854094,1758060641146,-230.36223425,0.00022191,3]
[385854097,1758060641158,-480.0,0.00022191,3]
[385854100,1758060641168,-328.0,0.00022191,3]
[385854103,1758060641177,-328.0,0.00022191,3]
[385854106,1758060641186,-328.0,0.00022191,3]
[385854109,1758060641196,-328.0,0.00022191,3]
[385854112,1758060641206,-328.0,0.00022191,3]
[385854115,1758060641215,-328.0,0.00022191,3]
[385854118,1758060641224,-328.0,0.00022191,3]
[385854121,1758060641234,-328.0,0.00022191,3]
[385854124,1758060641243,-480.0,0.00022191,3]
[385854127,1758060641252,-480.0,0.00022191,3]
[385854130,1758060641261,-480.0,0.00022191,3]
[385854133,1758060641270,-524.37,0.00022191,3]
[385854136,1758060641279,-480.0,0.00022191,3]
[385854139,1758060641288,-729.37,0.00022191,3]
[385854142,1758060641297,-480.0,0.00022191,3]
[385854145,1758060641306,-480.0,0.00022191,3]
[385854148,1758060641315,-857.54,0.00022191,3]
[385854151,1758060641324,-480.0,0.00022191,3]
[385854154,1758060641333,-543.12,0.00022191,3]
[385854157,1758060641342,-480.0,0.00022191,3]
[385854160,1758060641352,-480.0,0.00022191,3]
[385854163,1758060641361,-480.0,0.00022191,3]
[385854166,1758060641370,-480.0,0.00022191,3]
[385854169,1758060641379,-480.0,0.00022191,3]
[385854172,1758060641388,-480.0,0.00022191,3]
[385854175,1758060641397,-480.0,0.00022191,3]
[385854178,1758060641406,-480.0,0.00022191,3]
[385854181,1758060641415,-480.0,0.00022191,3]
[385854184,1758060641425,-480.0,0.00022191,3]
[385854187,1758060641434,-480.0,0.00022191,3]
[385854190,1758060641444,-480.0,0.00022191,3]
[385854192,1758060641453,-480.0,0.00022191,3]
[385854195,1758060641462,-480.0,0.00022191,3]
[385854198,1758060641471,-480.0,0.00022191,3]
[385854201,1758060641479,-480.0,0.00022191,3]
[385854205,1758060641489,-480.0,0.00022191,3]
[385854209,1758060641498,-480.0,0.00022191,3]
[385854212,1758060641507,-480.0,0.00022191,3]
[385854213,1758060641516,-480.0,0.00022191,3]